bitfinex/quotes_BTCUSD_20250624
["timestamp","ask_amount","ask_price","bid_price","bid_amount"]
[1750733697798,1.26029861,104980.0,104970.0,0.0002]
[1750733698017,1.26029861,104980.0,104940.0,0.0458887]
[1750733698018,1.26029861,104980.0,104940.0,0.0144887]
[1750733698020,1.81533258,104980.0,104940.0,0.0144887]
[1750733698230,0.27893797,104950.0,104940.0,0.0144887]
[1750733698376,0.70729797,104950.0,104940.0,0.01462714]
[1750733698587,0.42836,104950.0,104940.0,0.79087252]
[1750733698798,0.42836,104950.0,104940.0,0.87684549]
[1750733699015,0.42836,104950.0,104940.0,0.88637438]
[1750733699422,0.42836,104950.0,104940.0,0.36070094]
[1750733699663,0.42836,104950.0,104940.0,0.90543189]
[1750733699855,0.42836,104950.0,104940.0,0.9149605]
[1750733700056,0.42836,104950.0,104940.0,0.9169605]
[1750733700283,0.4284,104950.0,104940.0,0.6672411]
[1750733700476,0.22892,104950.0,104940.0,0.6652411]
[1750733700844,0.22992,104950.0,104940.0,0.6722411]
[1750733701054,0.4294,104950.0,104940.0,0.6722411]
[1750733701268,0.22992,104950.0,104940.0,0.6722411]
[1750733701483,0.4304,104950.0,104940.0,0.6762411]
[1750733702866,0.23092,104950.0,104940.0,0.68579359]
[1750733703082,0.4304,104950.0,104940.0,0.97127643]
[1750733703746,0.4304,104950.0,104940.0,0.68579359]
[1750733704022,0.23092,104950.0,104940.0,0.68579359]
[1750733704243,0.20152,104950.0,104940.0,1.26747643]
[1750733704677,0.0436,104950.0,104940.0,1.26747643]
[1750733706339,0.0436,104950.0,104940.0,0.69651075]
[1750733706548,0.0436,104950.0,104940.0,1.26747643]
[1750733707231,0.0436,104950.0,104940.0,1.29611943]
[1750733708065,0.002,104950.0,104940.0,1.29611943]
[1750733708213,0.0436,104950.0,104940.0,1.29611943]
[1750733708816,0.002,104950.0,104940.0,1.29611943]
[1750733713077,0.001,104950.0,104940.0,1.29211943]
[1750733713417,0.002,104950.0,104940.0,1.64754025]
[1750733713694,0.00123725,104950.0,104940.0,1.80538025]
[1750733715909,0.001,104950.0,104940.0,1.79838025]
[1750733717252,0.002,104950.0,104940.0,1.80638025]
[1750733717472,0.002,104950.0,104940.0,1.85638025]
[1750733720348,0.002,104950.0,104940.0,2.14186309]
[1750733720575,0.002,104950.0,104940.0,1.85638025]
[1750733720783,0.00054086,104950.0,104940.0,1.85638025]
[1750733721383,0.00054086,104950.0,104940.0,1.8709211]
[1750733724730,0.11726085,104980.0,104970.0,0.25070911]
[1750733724870,0.11726085,104980.0,104970.0,0.92735295]
[1750733725726,0.11726085,104980.0,104970.0,1.21283579]
[1750733726256,0.11726085,104980.0,104970.0,1.21383579]
[1750733726675,0.11726085,104980.0,104970.0,1.21483579]
[1750733728008,0.0416,104980.0,104970.0,1.21483579]
[1750733728439,0.33728085,105000.0,104990.0,0.21906738]
[1750733728647,0.37888085,105000.0,104990.0,0.60005208]
[1750733729706,0.37888085,105000.0,104990.0,0.60019052]
[1750733730131,0.27062,105000.0,104990.0,0.60955402]
[1750733730344,0.27162,105000.0,104990.0,0.33007118]
[1750733730557,0.27162,105000.0,104990.0,0.61555402]
[1750733730996,0.23002,105000.0,104990.0,0.61555402]
[1750733731211,0.23002,105000.0,104990.0,0.91121316]
[1750733731212,0.27162,105000.0,104990.0,0.91121316]
[1750733731440,0.23002,105000.0,104990.0,0.92631316]
[1750733731654,0.27162,105000.0,104990.0,0.65633032]
[1750733731870,0.0011,105000.0,104990.0,0.94181316]
[1750733732078,0.0427,105000.0,104990.0,0.94181316]
[1750733734192,0.0011,105000.0,104990.0,0.94181316]
[1750733734397,0.0427,105000.0,104990.0,0.94181316]
[1750733736280,0.0011,105000.0,104990.0,0.65633032]
[1750733736485,0.0427,105000.0,104990.0,0.91121316]
[1750733737180,0.0741,105000.0,104990.0,0.91121316]
[1750733737616,0.0741,105000.0,104990.0,0.62573032]
[1750733737841,0.0741,105000.0,104990.0,0.61636682]
[1750733738265,0.0741,105000.0,104990.0,0.58779377]
[1750733738487,0.0741,105000.0,104990.0,0.61636691]
[1750733738696,0.0741,105000.0,104990.0,0.62589099]
[1750733738910,0.0741,105000.0,104990.0,0.51134106]
[1750733739134,0.0741,105000.0,104990.0,0.52086532]
[1750733739356,0.0741,105000.0,104990.0,0.51134106]
[1750733739570,0.0741,105000.0,104990.0,0.53038976]
[1750733739771,0.0741,105000.0,104990.0,0.53991393]
[1750733739982,0.0741,105000.0,104990.0,0.53038931]
[1750733740184,0.0741,105000.0,104990.0,0.53991339]
[1750733740399,0.0741,105000.0,104990.0,0.53038931]
[1750733740612,0.0741,105000.0,104990.0,0.53991339]
[1750733741467,0.0741,105000.0,104990.0,0.53038931]
[1750733741672,0.0741,105000.0,104990.0,0.52086514]
[1750733742088,0.0741,105000.0,104990.0,0.53038931]
[1750733742362,0.0741,105000.0,104990.0,0.53991339]
[1750733742567,0.0741,105000.0,104990.0,0.24425425]
[1750733746786,0.0741,105000.0,104990.0,0.225206]
[1750733747012,0.0741,105000.0,104990.0,0.24425425]
[1750733748961,0.0741,105000.0,104990.0,0.21568174]
[1750733749103,0.0741,105000.0,104990.0,0.23472999]
[1750733754369,0.0741,105000.0,104990.0,0.2061573]
[1750733754573,0.0741,105000.0,104990.0,0.22520582]
[1750733755597,0.0741,105000.0,104990.0,0.2347299]
[1750733756032,0.0741,105000.0,104990.0,0.22520582]
[1750733756930,0.0741,105000.0,104990.0,0.2347299]
[1750733757619,0.0741,105000.0,104990.0,0.52021274]
[1750733758066,0.20042,105000.0,104990.0,0.6157146]
[1750733758489,0.21582,105000.0,104990.0,0.6157146]
[1750733758708,0.0011,105000.0,104990.0,0.93399744]
[1750733758906,0.0011,105000.0,104990.0,0.6485146]
[1750733762519,0.0011,105000.0,104990.0,0.67719182]
[1750733763174,0.0011,105000.0,104990.0,0.97285096]
[1750733764852,0.0011,105000.0,104990.0,1.00147796]
[1750733765099,0.0011,105000.0,104990.0,1.3060408]
[1750733765310,0.0011,105000.0,104990.0,0.73507512]
[1750733765749,0.0001,105000.0,104990.0,1.01455796]
[1750733765964,0.0011,105000.0,104990.0,1.02055796]
[1750733766182,0.0021,105000.0,104990.0,1.02855796]
[1750733766615,0.0021,105000.0,104990.0,1.3140408]
[1750733766826,0.0021,105000.0,104990.0,0.74307512]
[1750733767050,0.0021,105000.0,104990.0,1.3140408]
[1750733768769,0.0021,105000.0,104990.0,1.4717608]
[1750733769205,0.0021,105000.0,104990.0,1.17610166]
[1750733770138,0.0021,105000.0,104990.0,1.15702166]
[1750733774367,0.0021,105000.0,104990.0,0.99930166]
[1750733774575,0.0021,105000.0,104990.0,1.15702166]
[1750733774983,0.0021,105000.0,104990.0,1.45322166]
[1750733775539,0.0021,105000.0,104990.0,1.29550166]
[1750733775749,0.0021,105000.0,104990.0,1.45322166]
[1750733776681,0.0021,105000.0,104990.0,1.29550166]
[1750733776894,0.0021,105000.0,104990.0,1.45322166]
[1750733777319,0.0021,105000.0,104990.0,1.45318166]
[1750733778417,0.0021,105000.0,104990.0,1.29550166]
[1750733778628,0.0021,105000.0,104990.0,1.45318166]
[1750733779271,0.0021,105000.0,104990.0,1.29550166]
[1750733779487,0.0021,105000.0,104990.0,1.45318166]
[1750733780754,0.0021,105000.0,104990.0,1.29550166]
[1750733780962,0.0021,105000.0,104990.0,1.45318166]
[1750733781972,0.0021,105000.0,104990.0,1.29550166]
[1750733782393,0.0021,105000.0,104990.0,1.45318166]
[1750733787795,0.0021,105000.0,104990.0,1.29550166]
[1750733788471,0.0021,105000.0,104990.0,1.45318166]
[1750733791623,0.0021,105000.0,104990.0,1.29550166]
[1750733791830,0.0021,105000.0,104990.0,1.45314166]
[1750733794526,0.0021,105000.0,104990.0,1.29550166]
[1750733794728,0.0021,105000.0,104990.0,1.45314166]
[1750733795145,0.0021,105000.0,104990.0,1.29550166]
[1750733795348,0.0021,105000.0,104990.0,1.45314166]
[1750733800380,0.0021,105000.0,104990.0,1.41678966]
[1750733801589,0.0021,105000.0,104990.0,0.88217598]
[1750733801792,0.0183,105000.0,104990.0,0.95904282]
[1750733802024,0.0342,105000.0,104990.0,0.95904282]
[1750733802242,0.0342,105000.0,104990.0,0.92084152]
[1750733802450,0.0342,105000.0,104990.0,0.51988174]
[1750733802668,0.0342,105000.0,104990.0,0.80515104]
[1750733802879,0.0342,105000.0,104990.0,0.81467512]
[1750733803106,0.0342,105000.0,104990.0,0.52940591]
[1750733803374,0.0342,105000.0,104990.0,0.51035739]
[1750733803582,0.0342,105000.0,104990.0,0.52940636]
[1750733803789,0.0342,105000.0,104990.0,0.53893053]
[1750733804009,0.23332,105000.0,104990.0,0.54845461]
[1750733804728,0.23332,105000.0,104990.0,0.25225461]
[1750733804956,0.23302,105000.0,104990.0,0.25225461]
[1750733805397,0.23302,105000.0,104990.0,0.53752391]
[1750733806078,0.23302,105000.0,104990.0,0.25225461]
[1750733807590,0.23302,105000.0,104990.0,0.24273053]
[1750733807803,0.23302,105000.0,104990.0,0.25225461]
[1750733809530,0.0339,105000.0,104990.0,0.25225461]
[1750733809743,0.23302,105000.0,104990.0,0.25225461]
[1750733811494,0.29014003,105000.0,104990.0,0.01413844]
[1750733811721,0.57540933,105000.0,104990.0,0.01413844]
[1750733811955,1.32581749,105000.0,104990.0,0.01413844]
[1750733812212,1.34360838,105000.0,104990.0,0.01413844]
[1750733812425,1.05833908,105000.0,104990.0,0.01413844]
[1750733812654,1.08719412,105000.0,104990.0,0.01413844]
[1750733812877,1.06940323,105000.0,104990.0,0.01413844]
[1750733813081,1.06940323,105000.0,104990.0,0.01311668]
[1750733813511,0.0311,104980.0,104960.0,0.50439985]
[1750733813759,0.23142,104970.0,104960.0,0.32420583]
[1750733814254,0.23142,104970.0,104960.0,0.32420547]
[1750733814684,0.23142,104970.0,104960.0,0.5999477]
[1750733814898,0.23142,104970.0,104960.0,4.626e-05]
[1750733815117,0.23142,104970.0,104960.0,0.01910094]
[1750733815335,0.23142,104970.0,104960.0,0.22870386]
[1750733815543,0.23142,104970.0,104960.0,0.22117688]
[1750733815746,0.23142,104970.0,104960.0,0.21164972]
[1750733816072,0.23142,104970.0,104960.0,0.22117688]
[1750733816287,0.23142,104970.0,104960.0,0.21164972]
[1750733816948,0.23242,104970.0,104960.0,0.21564972]
[1750733817420,0.0333,104970.0,104960.0,0.21564972]
[1750733817633,0.23242,104970.0,104960.0,0.21564972]
[1750733817857,0.0333,104970.0,104960.0,0.21564972]
[1750733818081,0.23242,104970.0,104960.0,0.22517688]
[1750733819361,0.23242,104970.0,104960.0,0.21564972]
[1750733819575,0.23242,104970.0,104960.0,0.22517688]
[1750733819988,0.23242,104970.0,104960.0,0.21564981]
[1750733820193,0.23242,104970.0,104960.0,0.22517697]
[1750733820607,0.23242,104970.0,104960.0,0.22517706]
[1750733822309,0.23242,104970.0,104960.0,0.23470413]
[1750733822524,0.24696085,104970.0,104960.0,0.00604626]
[1750733822737,0.28954003,104970.0,104960.0,0.00604626]
[1750733824719,0.57480933,104970.0,104960.0,0.00604626]
[1750733824991,0.91480933,104970.0,104960.0,0.00604626]
[1750733825667,0.62954003,104970.0,104960.0,0.00604626]
[1750733827800,0.62950003,104970.0,104960.0,0.00604626]
[1750733828031,0.61495918,104970.0,104960.0,0.01557369]
[1750733828240,0.21668,104970.0,104960.0,0.51997298]
[1750733828453,0.23228,104970.0,104960.0,0.51997316]
[1750733828669,0.0332,104970.0,104960.0,0.51997316]
[1750733828886,0.23228,104970.0,104960.0,0.52950005]
[1750733829094,0.23228,104970.0,104960.0,0.51997316]
[1750733829538,0.23228,104970.0,104960.0,0.51044618]
[1750733829747,0.23228,104970.0,104960.0,0.51997316]
[1750733829970,0.23228,104970.0,104960.0,0.23470395]
[1750733830403,0.23228,104970.0,104960.0,0.21564963]
[1750733830632,0.23228,104970.0,104960.0,0.2251767]
[1750733831253,0.23228,104970.0,104960.0,0.21564963]
[1750733831449,0.23228,104970.0,104960.0,0.22517688]
[1750733832085,0.23228,104970.0,104960.0,0.21564972]
[1750733832552,0.27485918,104970.0,104960.0,0.00604626]
[1750733835626,0.28940003,104970.0,104960.0,0.00604626]
[1750733836316,0.62940003,104970.0,104960.0,0.00604626]
[1750733837035,0.62936003,104970.0,104960.0,0.00604626]
[1750733837872,0.64715646,104970.0,104960.0,0.00604626]
[1750733842227,0.64718215,104970.0,104960.0,0.00604626]
[1750733842884,0.95526395,104970.0,104960.0,0.00604626]
[1750733843520,0.95526395,104970.0,104960.0,0.00404626]
[1750733843972,0.95426395,104970.0,104960.0,4.626e-05]
[1750733844410,1.04976581,104970.0,104960.0,4.626e-05]
[1750733844839,1.05176581,104970.0,104960.0,0.00104626]
[1750733845902,1.34656082,104970.0,104960.0,0.00104626]
[1750733846111,1.37214026,104970.0,104960.0,0.00104626]
[1750733846326,1.08687096,104970.0,104960.0,0.00104626]
[1750733847342,1.37214026,104970.0,104960.0,0.00104626]
[1750733848035,1.40178852,104970.0,104960.0,0.00104626]
[1750733849308,1.41131441,104970.0,104960.0,0.00104626]
[1750733849522,1.42084048,104970.0,104960.0,0.00104626]
[1750733849748,1.46758433,104970.0,104960.0,0.00104626]
[1750733850402,1.55352821,104970.0,104960.0,0.00104626]
[1750733850610,1.54462866,104970.0,104960.0,0.00104626]
[1750733850817,1.25963799,104970.0,104960.0,0.00104626]
[1750733851027,1.476979,104970.0,104960.0,0.00104626]
[1750733851231,1.4585579,104970.0,104960.0,0.00104626]
[1750733851442,1.25011183,104970.0,104960.0,0.00104626]
[1750733851658,1.46808406,104970.0,104960.0,0.00104626]
[1750733851876,1.46708397,104970.0,104960.0,0.00104626]
[1750733852096,1.46945351,104970.0,104960.0,0.00104626]
[1750733852316,1.47897958,104970.0,104960.0,0.00104626]
[1750733852536,1.47008388,104970.0,104960.0,0.00104626]
[1750733853014,1.47961013,104970.0,104960.0,0.00104626]
[1750733853496,1.48461013,104970.0,104960.0,0.00204626]
[1750733853759,1.56815963,104970.0,104960.0,0.00204626]
[1750733854018,1.77684794,104970.0,104960.0,0.00204626]
[1750733854433,1.76732187,104970.0,104960.0,0.00204626]
[1750733854878,1.75779562,104970.0,104960.0,0.00204626]
[1750733856173,6.80779562,104970.0,104960.0,0.00204626]
[1750733856606,6.80776291,104970.0,104960.0,0.00204626]
[1750733857574,6.75101194,104970.0,104960.0,0.00204626]
[1750733858628,6.7414855,104970.0,104960.0,0.00204626]
[1750733859466,6.76988819,104970.0,104960.0,0.00204626]
[1750733860084,6.76100388,104970.0,104960.0,0.00204626]
[1750733861113,6.76988315,104970.0,104960.0,0.00204626]
[1750733861337,6.77940959,104970.0,104960.0,0.00204626]
[1750733861545,6.77053032,104970.0,104960.0,0.00204626]
[1750733862146,6.77053032,104970.0,104960.0,1e-08]
[1750733862580,6.77053296,104970.0,104960.0,1e-08]
[1750733865000,6.58113912,104970.0,104960.0,1e-08]
[1750733865242,6.7800262,104970.0,104960.0,1e-08]
[1750733866083,6.78002685,104970.0,104960.0,1e-08]
[1750733867752,6.60854837,104970.0,104960.0,1e-08]
[1750733867970,6.79907899,104970.0,104960.0,1e-08]
[1750733868189,6.7990842,104970.0,104960.0,1e-08]
[1750733868514,6.7612399,104970.0,104960.0,1e-08]
[1750733868829,6.7990842,104970.0,104960.0,1e-08]
[1750733869039,6.6002042,104970.0,104960.0,1e-08]
[1750733869226,6.7990842,104970.0,104960.0,1e-08]
[1750733869438,6.70997942,104970.0,104960.0,1e-08]
[1750733869684,5.83910051,104970.0,104960.0,1e-08]
[1750733869893,6.59895267,104970.0,104960.0,1e-08]
[1750733870126,6.60847911,104970.0,104960.0,1e-08]
[1750733870342,6.79900973,104970.0,104960.0,1e-08]
[1750733870551,6.76116543,104970.0,104960.0,1e-08]
[1750733870759,6.79900973,104970.0,104960.0,1e-08]
[1750733870964,6.79901098,104970.0,104960.0,1e-08]
[1750733871610,6.75164079,104970.0,104960.0,1e-08]
[1750733871816,6.59064509,104970.0,104960.0,1e-08]
[1750733872279,6.78948509,104970.0,104960.0,1e-08]
[1750733872750,6.40011447,104970.0,104960.0,1e-08]
[1750733873239,6.60784959,104970.0,104960.0,1e-08]
[1750733873909,6.60787637,104970.0,104960.0,1e-08]
[1750733874121,6.79840699,104970.0,104960.0,1e-08]
[1750733874343,6.40903637,104970.0,104960.0,1e-08]
[1750733874582,6.60787637,104970.0,104960.0,1e-08]
[1750733876523,6.55669036,104970.0,104960.0,1e-08]
[1750733876738,6.55672723,104970.0,104960.0,1e-08]
[1750733877287,6.51888293,104970.0,104960.0,1e-08]
[1750733877695,6.51889228,104970.0,104960.0,1e-08]
[1750733878339,6.54169945,104970.0,104960.0,1e-08]
[1750733878772,6.57971051,104970.0,104960.0,1e-08]
[1750733878944,6.65953508,104970.0,104960.0,1e-08]
[1750733879978,6.8500657,104970.0,104960.0,1e-08]
[1750733880142,6.82725907,104970.0,104960.0,1e-08]
[1750733881527,6.817733,104970.0,104960.0,1e-08]
[1750733881892,6.81605843,104970.0,104960.0,1e-08]
[1750733882098,6.8405768,104970.0,104960.0,1e-08]
[1750733882890,6.77403997,104970.0,104960.0,1e-08]
[1750733883492,6.77404274,104970.0,104960.0,1e-08]
[1750733884908,6.71320987,104970.0,104960.0,1e-08]
[1750733885578,6.71304987,104970.0,104960.0,1e-08]
[1750733886436,6.94601588,104970.0,104960.0,1e-08]
[1750733887646,6.91926921,104970.0,104960.0,1e-08]
[1750733887954,6.94602781,104970.0,104960.0,1e-08]
[1750733890163,7.00061528,104970.0,104960.0,1e-08]
[1750733890388,7.00057528,104970.0,104960.0,1e-08]
[1750733890573,7.00057668,104970.0,104960.0,1e-08]
[1750733891205,7.0804965,104970.0,104960.0,1e-08]
[1750733891825,6.91054676,104970.0,104960.0,1e-08]
[1750733892038,7.05349539,104970.0,104960.0,1e-08]
[1750733892452,6.82142058,104970.0,104960.0,1e-08]
[1750733893424,6.80358086,104970.0,104960.0,1e-08]
[1750733893638,6.82141762,104970.0,104960.0,1e-08]
[1750733894399,6.62277762,104970.0,104960.0,1e-08]
[1750733894607,6.82141762,104970.0,104960.0,1e-08]
[1750733896319,6.82141724,104970.0,104960.0,1e-08]
[1750733896759,6.80357905,104970.0,104960.0,1e-08]
[1750733896981,1.26238646,104970.0,104960.0,1e-08]
[1750733897190,1.66144365,104970.0,104960.0,0.03140001]
[1750733897399,1.67598544,104970.0,104960.0,0.03140001]
[1750733897809,1.68551124,104970.0,104960.0,0.03140001]
[1750733898234,0.40894007,104970.0,104960.0,0.03140001]
[1750733898489,0.29045617,104970.0,104960.0,0.5362449]
[1750733898691,0.46040717,104970.0,104960.0,0.2410032]
[1750733898894,0.46040717,104970.0,104960.0,0.23147613]
[1750733899120,0.46040717,104970.0,104960.0,0.25053018]
[1750733899350,0.46040717,104970.0,104960.0,0.26005716]
[1750733899566,0.46040717,104970.0,104960.0,0.26958405]
[1750733899776,0.45540717,104970.0,104960.0,0.26958404]
[1750733899989,0.45040717,104970.0,104960.0,0.26958404]
[1750733900201,0.45440717,104970.0,104960.0,0.27058404]
[1750733900407,0.45340717,104970.0,104960.0,0.26958404]
[1750733900844,0.45140717,104970.0,104960.0,0.27358404]
[1750733901281,0.45140717,104970.0,104960.0,0.27558404]
[1750733902075,0.45140717,104970.0,104960.0,0.25653035]
[1750733902457,0.45136717,104970.0,104960.0,0.25653035]
[1750733902656,0.45136717,104970.0,104960.0,0.26605733]
[1750733903018,0.45136717,104970.0,104960.0,0.24700301]
[1750733903436,0.45136717,104970.0,104960.0,0.25652999]
[1750733903839,0.45136717,104970.0,104960.0,0.24700301]
[1750733904470,0.49394635,104970.0,104960.0,0.22794878]
[1750733904655,0.5084872,104970.0,104960.0,0.22794878]
[1750733906743,0.5084872,104970.0,104960.0,0.0374]
[1750733907910,0.5084872,104970.0,104960.0,0.04692743]
[1750733908326,0.5084872,104970.0,104960.0,0.23747621]
[1750733909388,0.5084872,104970.0,104960.0,0.24700346]
[1750733909820,0.5084872,104970.0,104960.0,0.24700355]
[1750733910022,0.5084872,104970.0,104960.0,0.2565308]
[1750733910637,0.5084872,104970.0,104960.0,0.24700355]
[1750733911670,0.5084872,104970.0,104960.0,0.2565308]
[1750733912791,0.5084872,104970.0,104960.0,0.24700355]
[1750733914025,0.5084872,104970.0,104960.0,0.22794878]
[1750733914026,0.7942021,104970.0,104960.0,0.22794878]
[1750733914747,0.5084872,104970.0,104960.0,0.22794878]
[1750733914979,0.5084872,104970.0,104960.0,0.23747612]
[1750733916568,0.5084872,104970.0,104960.0,0.24700337]
[1750733917180,0.5084872,104970.0,104960.0,0.22794878]
[1750733917399,0.5084872,104970.0,104960.0,0.24700355]
[1750733917600,0.5084872,104970.0,104960.0,0.2565308]
[1750733917836,0.5084872,104970.0,104960.0,0.26605796]
[1750733919072,0.49394635,104970.0,104960.0,0.27558494]
[1750733919279,0.49394635,104970.0,104960.0,0.26605751]
[1750733919483,0.5084872,104970.0,104960.0,0.22794878]
[1750733920147,0.5084872,104970.0,104960.0,0.23747621]
[1750733920567,0.5084872,104970.0,104960.0,0.24700355]
[1750733921990,0.5084872,104970.0,104960.0,0.23747621]
[1750733922193,0.7942021,104970.0,104960.0,0.22794878]
[1750733922637,0.7942021,104970.0,104960.0,0.23747621]
[1750733924698,0.7942021,104970.0,104960.0,0.22794878]
[1750733924903,0.7942021,104970.0,104960.0,0.23747621]
[1750733925126,0.7942021,104970.0,104960.0,0.0374]
[1750733925338,1.1342021,104970.0,104960.0,0.006]
[1750733925756,1.1342021,104970.0,104960.0,0.0225]
[1750733926906,1.1342021,104970.0,104960.0,0.0381]
[1750733930072,1.1342021,104970.0,104960.0,0.05719]
[1750733930284,1.1342021,104970.0,104960.0,0.0381]
[1750733932016,1.1342021,104970.0,104960.0,0.04762743]
[1750733932225,1.1342021,104970.0,104960.0,0.24770337]
[1750733932425,0.8484872,104970.0,104960.0,0.24770337]
[1750733932627,0.8484872,104970.0,104960.0,0.24770346]
[1750733932865,0.8484872,104970.0,104960.0,0.25723062]
[1750733933072,0.8484872,104970.0,104960.0,0.24770355]
[1750733933408,0.8484872,104970.0,104960.0,0.0381]
[1750733934551,1.1342021,104970.0,104960.0,0.0381]
[1750733936004,0.8484872,104970.0,104960.0,0.0381]
[1750733938846,1.1342021,104970.0,104960.0,0.0381]
[1750733939056,0.8484872,104970.0,104960.0,0.0381]
[1750733939282,0.8480872,104970.0,104960.0,0.23817603]
[1750733939537,0.8480872,104970.0,104960.0,0.23817612]
[1750733940565,0.3099272,104970.0,104960.0,0.23817621]
[1750733940786,0.5079672,104970.0,104960.0,0.24770337]
[1750733941001,0.49342635,104970.0,104960.0,0.24770337]
[1750733943096,0.49342635,104970.0,104960.0,0.23817621]
[1750733943324,0.49342635,104970.0,104960.0,0.24770346]
[1750733944016,0.49342635,104970.0,104960.0,0.24770355]
[1750733944297,0.49342635,104970.0,104960.0,0.25723071]
[1750733944504,0.49342635,104970.0,104960.0,0.04762734]
[1750733944936,0.49342635,104970.0,104960.0,0.05715459]
[1750733946032,0.49342635,104970.0,104960.0,0.04762734]
[1750733946274,0.49342635,104970.0,104960.0,0.24770319]
[1750733946454,0.49342635,104970.0,104960.0,0.24770328]
[1750733947531,0.29538635,104970.0,104960.0,0.24770337]
[1750733947759,0.49334635,104970.0,104960.0,0.24770337]
[1750733949006,0.49334635,104970.0,104960.0,0.51533011]
[1750733950391,0.49334635,104970.0,104960.0,0.0381]
[1750733950392,0.76097309,104970.0,104960.0,0.0381]
[1750733950787,1.50954254,104970.0,104960.0,0.006]
[1750733950967,1.2419158,104970.0,104960.0,0.006]
[1750733951566,1.2409158,104970.0,104960.0,0.002]
[1750733951768,0.35454085,104960.0,104940.0,0.78795745]
[1750733952001,0.19792,104950.0,104940.0,0.5225037]
[1750733952344,0.19792,104950.0,104940.0,0.25487696]
[1750733952561,0.19792,104950.0,104940.0,0.26440594]
[1750733953224,0.19792,104950.0,104940.0,0.56902818]
[1750733953403,0.19792,104950.0,104940.0,0.55949947]
[1750733953631,0.19792,104950.0,104940.0,0.28346363]
[1750733953985,0.19792,104950.0,104940.0,0.27393483]
[1750733954196,0.35454085,104960.0,104940.0,0.27393483]
[1750733954458,0.39812003,104960.0,104950.0,0.0165]
[1750733954664,0.04108,104950.0,104940.0,0.25737669]
[1750733954879,0.04108,104950.0,104940.0,0.24784771]
[1750733955104,0.08365918,104950.0,104940.0,0.01553495]
[1750733955522,0.08365918,104950.0,104940.0,0.02506402]
[1750733955940,0.08365918,104950.0,104940.0,0.0250642]
[1750733956160,0.08365918,104950.0,104940.0,0.0240642]
[1750733956373,0.08365918,104950.0,104940.0,0.01453495]
[1750733956590,0.08365918,104950.0,104940.0,0.0240642]
[1750733956820,0.08465918,104950.0,104940.0,0.01653495]
[1750733957682,0.08465918,104950.0,104940.0,0.0260642]
[1750733958764,0.08465918,104950.0,104940.0,0.01653495]
[1750733958921,0.08465918,104950.0,104940.0,0.0260642]
[1750733959753,0.08465918,104950.0,104940.0,0.03559336]
[1750733959987,0.08465918,104950.0,104940.0,0.0260642]
[1750733960275,0.08465918,104950.0,104940.0,0.03559336]
[1750733960484,0.08465918,104950.0,104940.0,0.2765365]
[1750733960687,0.04208,104950.0,104940.0,0.2860653]
[1750733960893,0.04208,104950.0,104940.0,0.57162885]
[1750733961315,0.08465918,104950.0,104940.0,0.57162885]
[1750733961920,0.04208,104950.0,104940.0,0.57162885]
[1750733963121,0.04228,104950.0,104940.0,0.57162885]
[1750733963988,0.0012,104950.0,104940.0,0.57162885]
[1750733964186,0.19908,104950.0,104940.0,0.57162885]
[1750733966061,0.0012,104950.0,104940.0,0.57162885]
[1750733966257,0.19904,104950.0,104940.0,0.57162885]
[1750733966915,0.19904,104950.0,104940.0,0.28606421]
[1750733967249,0.19904,104950.0,104940.0,0.57162885]
[1750733968037,0.0012,104950.0,104940.0,0.57162885]
[1750733968246,0.19904,104950.0,104940.0,0.57162885]
[1750733969056,0.0012,104950.0,104940.0,0.57162885]
[1750733969294,0.19904,104950.0,104940.0,0.57162885]
[1750733969496,0.19904,104950.0,104940.0,0.2670068]
[1750733969742,0.19904,104950.0,104940.0,0.27653541]
[1750733970120,0.0012,104950.0,104940.0,0.27653541]
[1750733970327,0.19904,104950.0,104940.0,0.27653541]
[1750733971201,0.0012,104950.0,104940.0,0.27653541]
[1750733971427,0.19888,104950.0,104940.0,0.27653541]
[1750733973103,0.0012,104950.0,104940.0,0.27653541]
[1750733973275,0.19888,104950.0,104940.0,0.27653541]
[1750733976307,0.19888,104950.0,104940.0,0.54424266]
[1750733976531,0.19888,104950.0,104940.0,0.81194991]
[1750733977006,0.19888,104950.0,104940.0,0.50341405]
[1750733977212,0.19888,104950.0,104940.0,0.50341414]
[1750733977422,0.19888,104950.0,104940.0,0.51294285]
[1750733977872,0.19888,104950.0,104940.0,0.2452356]
[1750733978075,0.19888,104950.0,104940.0,0.51294285]
[1750733978302,0.19888,104950.0,104940.0,0.50341414]
[1750733978598,0.19888,104950.0,104940.0,0.2452356]
[1750733978809,0.21458,104950.0,104940.0,0.22617809]
[1750733979220,0.21458,104950.0,104940.0,0.23570698]
[1750733979423,0.21458,104950.0,104940.0,0.22617809]
[1750733979641,0.21458,104950.0,104940.0,0.23570698]
[1750733979845,0.21458,104950.0,104940.0,0.51294303]
[1750733980067,0.21458,104950.0,104940.0,0.50341423]
[1750733981239,0.19888,104950.0,104940.0,0.52247174]
[1750733981413,0.19888,104950.0,104940.0,0.52247128]
[1750733982340,0.19888,104950.0,104940.0,0.25476403]
[1750733982539,0.19888,104950.0,104940.0,0.52247128]
[1750733984107,0.0012,104950.0,104940.0,0.82267853]
[1750733984323,0.19884,104950.0,104940.0,0.82267853]
[1750733985086,0.1988,104950.0,104940.0,0.82267853]
[1750733985282,0.0012,104950.0,104940.0,0.82267853]
[1750733985511,0.1988,104950.0,104940.0,0.82267853]
[1750733985920,0.5714,104950.0,104940.0,0.0260642]
[1750733986116,0.5714,104950.0,104940.0,0.01653495]
[1750733986319,0.5714,104950.0,104940.0,0.2842422]
[1750733986551,0.5714,104950.0,104940.0,0.01653495]
[1750733986719,0.5714,104950.0,104940.0,0.2842422]
[1750733990278,0.5714,104950.0,104940.0,0.01653495]
[1750733991088,0.84293918,104950.0,104940.0,0.01653495]
[1750734002777,0.61273918,104950.0,104940.0,0.50222061]
[1750734002993,0.76752,104950.0,104940.0,0.5432495]
[1750734003589,0.76352,104950.0,104940.0,0.5432495]
[1750734004115,0.76352,104950.0,104940.0,0.5527783]
[1750734004440,0.76352,104950.0,104940.0,0.56230691]
[1750734004642,0.76352,104950.0,104940.0,0.56230701]
[1750734004848,0.76352,104950.0,104940.0,0.5527783]
[1750734007082,0.42632,104950.0,104940.0,0.56230701]
[1750734007697,0.42632,104950.0,104940.0,0.54324959]
[1750734007905,0.42632,104950.0,104940.0,0.55277848]
[1750734009845,0.22896,104950.0,104940.0,0.94338045]
[1750734010071,0.42628,104950.0,104940.0,0.94338045]
[1750734010288,0.42628,104950.0,104940.0,0.65780895]
[1750734010496,0.42628,104950.0,104940.0,0.90748379]
[1750734011590,0.42628,104950.0,104940.0,1.20368379]